Cogmind - Beta 17.1 @@@ ROGUE MODE // 2026.09.01 @ 12:10:11 Player: cd4337 Result: Destroyed by H-61 Shepherd with Heavy Assault Cannon Performance ------------- Evolutions (2) 1000 Regions Visited (4) 800 Robots Destroyed (42) 210 Value Destroyed (1134) 1134 Prototype IDs (0) 0 Alien Tech Used (0) 0 Bonus (0) 0 TOTAL SCORE: 3144 Bonus ------- None Cogmind --------- Core Integrity 0/550 Matter 294/300 Energy 99/100 System Corruption 0% Temperature Cool (0) Movement Core (100) Ox1 Location -8/Materials Parts ------- > --- POWER (1) -------- (None) > --- PROPULSION (2) --- (None) > --- UTILITY (5) ------ Small Storage Unit Advanced Visual Processing Unit Improved Targeting Computer > --- WEAPON (3) ------- (None) > --- INVENTORY (8) ---- Improved Deuterium Engine Improved Deuterium Engine Medium Treads Compact Wheel Flight Unit Faulty Improved EM Shotgun Spear Peak State ------------ > --- POWER ------------ Light Deuterium Engine > --- PROPULSION ------- Light Treads Medium Treads > --- UTILITY ---------- Small Storage Unit Advanced Visual Processing Unit Improved Targeting Computer Core Analyzer Armor Integrity Analyzer > --- WEAPON ----------- Small Laser Gauss Rifle Gauss Rifle > --- INVENTORY -------- Improved Deuterium Engine Improved Deuterium Engine Medium Treads Compact Wheel Flight Unit Improved EM Shotgun Spear [Rating: 33] Favorites ----------- Power Ion Engine Engine Ion Engine Power Core Light Nuclear Core Propulsion Wheel Treads Light Treads Wheel Wheel Utility Small Storage Unit Device Sensor Array Storage Small Storage Unit Processor Improved Targeting Computer Hackware Hacking Suite Protection Core Shielding Weapon Small Laser Energy Gun Small Laser Ballistic Gun Assault Rifle Build | -11 -10 -9 -9 -8 ------- Run | Yrd Mat Mat Min Mat Slots Evolved 4 | . . 2 . 2 Power . | . . . . . Propulsion . | . . . . . Utility 3 | . . 2 . 1 Weapon 1 | . . . . 1 Parts Attached 39 | 7 8 16 . 8 Power 6 | 1 1 3 . 1 Engine 5 | 1 1 2 . 1 Core 1 | . . 1 . . Reactor . | . . . . . Propulsion 10 | 2 2 5 . 1 Treads 2 | . . 1 . 1 Leg . | . . . . . Wheel 8 | 2 2 4 . . Hover . | . . . . . Flight . | . . . . . Utility 11 | 1 2 4 . 4 Device 4 | . 1 3 . . Storage 1 | 1 . . . . Processor 4 | . . . . 4 Hackware 1 | . . 1 . . Protection 1 | . 1 . . . Artifact . | . . . . . Weapon 12 | 3 3 4 . 2 Energy Gun 6 | 2 1 3 . . Energy Cannon . | . . . . . Ballistic Gun 6 | 1 2 1 . 2 Ballistic Cannon . | . . . . . Launcher . | . . . . . Special Weapon . | . . . . . Impact Weapon . | . . . . . Slashing Weapon . | . . . . . Piercing Weapon . | . . . . . Special Melee Weapon . | . . . . . Unidentified Prototypes . | . . . . . Parts Lost 35 | . 8 14 . 13 Power 6 | . 1 3 . 2 Propulsion 9 | . 2 5 . 2 Utility 8 | . 1 2 . 5 Weapon 12 | . 4 4 . 4 Highest Loss Streak 8 | . 6 6 . 8 To Critical Strikes 1 | . 1 . . . Average Backups 3 | 2 2 3 2 4 Power . | . . . . . Propulsion 1 | 1 . 2 2 2 Utility . | . . . . . Weapon . | . 1 . . 1 Tool/Special . | . . . . . Unused Backups 6 | . . . . 6 Power 2 | . . . . 2 Propulsion 2 | . . . . 2 Utility . | . . . . . Weapon 2 | . . . . 2 Tool/Special . | . . . . . Average Slot Usage (%) 86 | . 96 77 88 75 Engine 10 | . 13 7 11 8 Treads 3 | . . . 11 14 Wheel 16 | . 26 14 . . Device 10 | . 11 11 22 5 Storage 11 | . 14 10 11 9 Processor 2 | . . . . 13 Hackware 2 | . . 2 11 6 Protection 2 | . 1 6 . . Energy Gun 13 | . 15 12 22 11 Ballistic Gun 9 | . 12 8 . 6 Peak Build Rating 33 | 6 7 15 10 33 Average Rating 9 | 3 6 8 10 17 On Entrance 6 | . 6 7 10 10 Avg Prop Armor Cover (%) . | . . . . . Naked Turns . | . . . . . Heaviest Build 15 | 14 15 14 14 15 Greatest Support 48 | 20 32 26 20 48 Greatest Overweight (x) 3 | 2 1 3 . 1 Average Overweight (x) . | . . . . . Largest Inventory Capacity 8 | 8 8 8 8 8 Average Capacity 7 | 6 8 7 8 8 Most Carried 8 | 5 4 8 2 8 Average Carried 3 | 2 2 3 2 4 Final Capacity 8 | 8 8 8 8 8 Final Carried 7 | 2 4 2 2 7 Class Distribution -------------------- 59% | Mutant 40% | Scavenger-Mutant Dominant Class ---------------- Mutant | -10/Materials Scavenger-Mutant | -9/Materials Scavenger-Mutant | -9/Mines Scavenger-Mutant | -8/Materials Resources | -11 -10 -9 -9 -8 ----------- Run | Yrd Mat Mat Min Mat Matter Collected 830 | 241 234 245 . 110 Remotely . | . . . . . Salvage Created 1511 | . 621 551 . 339 Parts 95 | . 33 40 . 22 Haulers Intercepted . | . . . . . Recyclers Shooed 6 | . 4 2 . . Parts Field Recycled . | . . . . . Retrieved Matter . | . . . . . Parts Self-Destructed . | . . . . . Prevented . | . . . . . Parts Restored . | . . . . . Kills | -11 -10 -9 -9 -8 ------- Run | Yrd Mat Mat Min Mat Combat Hostiles Destroyed 31 | . 14 12 . 5 Guns 31 | . 14 12 . 5 Classes Destroyed 9 | . 5 2 . 2 Worker 4 | . 1 3 . . Builder 1 | . . . . 1 Recycler 1 | . 1 . . . Watcher 5 | . 3 2 . . Swarmer 8 | . 5 3 . . Grunt 17 | . 9 7 . 1 Brawler 1 | . . 1 . . Sentry 1 | . . 1 . . Specialist 4 | . . . . 4 Best Kill Streak 6 | . 6 5 . 2 Combat Bots Only 6 | . 6 3 . 2 Max Kills in Single Turn 2 | . 2 2 . 1 Gunslinging 1 | . 1 1 . . Exploded . | . . . . . Melee . | . . . . . Uniques/NPCs Destroyed . | . . . . . Combat | -11 -10 -9 -9 -8 -------- Run | Yrd Mat Mat Min Mat Hostile Shots Fired 291 | . 113 98 . 80 Missed 61 | . 15 30 . 16 Hits 230 | . 98 68 . 64 Melee 4 | . . 4 . . Projectile 226 | . 98 64 . 64 Critical Strikes 10 | . 2 3 . 5 Actively Blocked 1 | . . 1 . . Damage Taken 3403 | . 947 989 . 1467 Core 1079 | . 234 239 . 606 Absorbed by Shields . | . . . . . Redirected to Shielding 43 | . 4 39 . . Regen/Repaired (Parts) 155 | . . 155 . . Core Remaining (%) 48 | 100 6 . 40 . Volleys Fired 179 | . 70 77 . 32 Largest 3 | . 2 2 . 3 Hottest 96 | . 90 80 . 96 Shots Fired 340 | . 129 153 . 58 Gun 340 | . 129 153 . 58 Cannon . | . . . . . Launcher . | . . . . . Special . | . . . . . Kinetic 165 | . 55 87 . 23 Thermal 175 | . 74 66 . 35 Explosive . | . . . . . Electromagnetic . | . . . . . Robot Hit Streak 18 | . 13 8 . 18 Robot Miss Streak 8 | . 4 8 . 3 Penetration Max 1 | . . . . 1 Secondary Targets 7 | . 4 3 . . Max Gunslinging Chain 1 | . 1 1 . . Shots Hit Robots 212 | . 82 85 . 45 Core Hits 86 | . 35 35 . 16 Critical Kills . | . . . . . Critical Parts Destroyed 3 | . 1 2 . . Critical Strikes 6 | . 4 2 . . Burn 3 | . 3 . . . Destroy 3 | . 1 2 . . Melee Attacks . | . . . . . Impact . | . . . . . Slashing . | . . . . . Piercing . | . . . . . Sneak Attacks . | . . . . . Combat Hostiles . | . . . . . Follow-up Attacks . | . . . . . Damage Inflicted 2501 | . 987 838 . 676 Guns 2501 | . 987 838 . 676 Cannons . | . . . . . Explosions . | . . . . . Melee . | . . . . . Ramming . | . . . . . Kinetic 1116 | . 371 375 . 370 Thermal 1385 | . 616 463 . 306 Explosive . | . . . . . Electromagnetic . | . . . . . Impact . | . . . . . Slashing . | . . . . . Piercing . | . . . . . Highest Corruption 7 | . 2 7 7 . Average Corruption 6 | . 2 6 7 . Corruption Purged . | . . . . . Corruption Blocked . | . . . . . Effects 7 | . . 6 1 . Matter Fused 2 | . . 2 . . Energy Discharges 1 | . . . 1 . Parts Rejected 1 | . . 1 . . Data Loss (major) 1 | . . 1 . . Misfires 1 | . . 1 . . Alerts 1 | . . 1 . . Overload Shots . | . . . . . Overflow Damage . | . . . . . Projectiles . | . . . . . Explosions . | . . . . . Melee . | . . . . . Knockbacks . | . . . . . Impact . | . . . . . Kinetic . | . . . . . Secondary . | . . . . . Self-Inflicted Damage . | . . . . . Shots . | . . . . . Rammed . | . . . . . Targets Rammed . | . . . . . Kicked . | . . . . . Crushed . | . . . . . Highest Temperature 203 | . 203 65 . 69 Average Temperature 38 | . 48 19 . 32 Received Heat Transfer 1170 | . 513 342 . 315 Siege Activations . | . . . . . Martial Activations . | . . . . . Shielding Activations . | . . . . . Robots Disrupted . | . . . . . Combat Hostiles . | . . . . . Robots Corrupted . | . . . . . Combat Hostiles . | . . . . . Parts Fried . | . . . . . Impact Corruptions . | . . . . . Robots Melted . | . . . . . Combat Hostiles . | . . . . . Parts Melted 2 | . . 1 . 1 Heat Transferred 3621 | . 1871 1050 . 700 Parts Sabotaged . | . . . . . Parts Stolen . | . . . . . Parts Stripped . | . . . . . Power Chain Reactions . | . . . . . Alert | -11 -10 -9 -9 -8 ------- Run | Yrd Mat Mat Min Mat Maximum Alert Level . | . . . . . Low Security (%) 100 | 100 100 100 100 100 Level 1 . | . . . . . Level 2 . | . . . . . Level 3 . | . . . . . Level 4 . | . . . . . Level 5 . | . . . . . High Security . | . . . . . Max Security . | . . . . . Peak Influence 100 | . 100 71 1 40 Initial 31 | . . 31 1 . Average 20 | . 24 28 . 7 Influence Increases 920 | . 442 334 . 144 Destroy 0b10 Robot/C 620 | . 280 240 . 100 Destroy 0b10 Robot/NC 55 | . 25 25 . 5 Destroy Leader 120 | . 46 54 . 20 Successful Hack 19 | . . . . 19 Destroy Structure 1 | . 1 . . . Lose Combat Pursuer 105 | . 90 15 . . Influence Decreases 920 | . 366 406 4 144 Entered New Map 48 | . . 45 3 . Time Decay 670 | . 302 258 1 109 Lost Part 202 | . 64 103 . 35 Squads Dispatched 5 | . 1 1 . 3 Investigation . | . . . . . Extermination . | . . . . . Reinforcement 5 | . 1 1 . 3 Assault . | . . . . . Garrison . | . . . . . Intercept . | . . . . . Searches Triggered . | . . . . . Construction Impeded . | . . . . . Haulers Reinforced . | . . . . . Active Scanning Responses . | . . . . . Cargo Convoy Interrupts . | . . . . . Stealth | -11 -10 -9 -9 -8 --------- Run | Yrd Mat Mat Min Mat Distress Signals 7 | . 3 4 . . Communications Jammed . | . . . . . Distress Signals . | . . . . . Times Spotted 63 | . 28 20 . 15 Peak Tracking Total 7 | . 7 4 . 6 Tactical Retreats 4 | . 3 1 . . Traps | -11 -10 -9 -9 -8 ------- Run | Yrd Mat Mat Min Mat Traps Triggered 2 | . 2 . . . Indirectly . | . . . . . Trap Hack Attempts . | . . . . . Triggered . | . . . . . Disarmed . | . . . . . Reprogrammed . | . . . . . Reused . | . . . . . Traps Extracted . | . . . . . Installed . | . . . . . Triggered . | . . . . . Machines | -11 -10 -9 -9 -8 ---------- Run | Yrd Mat Mat Min Mat Machines Disabled . | . . . . . Max in Single Turn . | . . . . . Machines Repaired . | . . . . . Machines Dismantled . | . . . . . Machines Sabotaged . | . . . . . Overloaded Fab Kills . | . . . . . Hacking | -11 -10 -9 -9 -8 --------- Run | Yrd Mat Mat Min Mat Machines Accessed 10 | . 6 1 . 3 Terminals 8 | . 6 . . 2 Fabricators . | . . . . . Repair Stations 2 | . . 1 . 1 Recycling Units . | . . . . . Scanalyzers . | . . . . . Garrison Access . | . . . . . Total Hacks 22 | . 11 5 . 6 Successful 8 | . . 4 . 4 Failed 14 | . 11 1 . 2 Catastrophic 3 | . 3 . . . Database Lockouts . | . . . . . Manual 14 | . 13 . . 1 Terminals 16 | . 11 . . 5 Fabricators . | . . . . . Repair Stations 6 | . . 5 . 1 Recycling Units . | . . . . . Scanalyzers . | . . . . . Garrison Access . | . . . . . Terminal Hacks 4 | . . . . 4 Robot Analysis 1 | . . . . 1 Level Access Points 1 | . . . . 1 Branch Access Points 1 | . . . . 1 Zone Layout 1 | . . . . 1 Fabricator Hacks . | . . . . . Repair Station Hacks 4 | . . 4 . . Scan Component 2 | . . 2 . . Repair 2 | . . 2 . . Recycling Unit Hacks . | . . . . . Scanalyzer . | . . . . . Garrison Access Hacks . | . . . . . Unauthorized Hacks . | . . . . . Terminals . | . . . . . Fabricators . | . . . . . Repair Stations . | . . . . . Recycling Units . | . . . . . Scanalyzers . | . . . . . Garrison Access . | . . . . . Data Cores Recovered . | . . . . . Used . | . . . . . Hacking Detections 11 | . 7 1 . 3 Full Trace Events . | . . . . . Feedback Events . | . . . . . Feedback Blocked . | . . . . . Robot Schematics Acquired . | . . . . . Robots Built . | . . . . . Authchips . | . . . . . Time . | . . . . . Total Robot Build Rating . | . . . . . Part Schematics Acquired . | . . . . . Parts Built . | . . . . . Authchips . | . . . . . Time . | . . . . . Total Part Build Rating . | . . . . . Part Studies Acquired . | . . . . . Parts Repaired 2 | . . 2 . . Time 52 | . . 52 . . Parts Recycled . | . . . . . Recycled Matter . | . . . . . Retrieved Matter . | . . . . . Retrieved Components . | . . . . . Parts Scanalyzed . | . . . . . Part Schematics Acquired . | . . . . . Parts Damaged . | . . . . . Bothacking | -11 -10 -9 -9 -8 ------------ Run | Yrd Mat Mat Min Mat Used RIF Installer . | . . . . . Robots Hacked . | . . . . . Non-combat . | . . . . . Combat . | . . . . . Robot Hacks Applied . | . . . . . Relay Couplers Released . | . . . . . Fabnet Peak Effective % . | . . . . . Robots Rewired . | . . . . . Allies Hacked . | . . . . . Hacks Repelled . | . . . . . Allies | -11 -10 -9 -9 -8 -------- Run | Yrd Mat Mat Min Mat Total Allies . | . . . . . Largest Group . | . . . . . Highest-Rated Group . | . . . . . Highest-Rated Ally . | . . . . . Total Orders . | . . . . . Ally Attacks . | . . . . . Total Damage . | . . . . . Kills . | . . . . . Allies Corrupted . | . . . . . Allies Melted . | . . . . . Intel | -11 -10 -9 -9 -8 ------- Run | Yrd Mat Mat Min Mat Active Infowar (turns) 1554 | . 900 334 78 242 Optics 100 | . . . . 100 Sensors 900 | . 900 . . . Terrain 554 | . . 334 78 142 Robot Analysis Total 1 | . . . . 1 Derelict Logs Recovered 1 | . . . 1 . Drone Launches . | . . . . . Drone Recoveries . | . . . . . Exploration | -11 -10 -9 -9 -8 ------------- Run | Yrd Mat Mat Min Mat Turns Passed 2317 | 40 1082 643 78 474 Spaces Moved 1099 | 36 529 297 45 192 Core 75 | 17 . 54 . 4 Treads 261 | . . 28 45 188 Legs . | . . . . . Wheels 763 | 19 529 215 . . Hover . | . . . . . Flight . | . . . . . Fastest Speed 50 | 50 80 80 160 100 Average Speed 106 | 71 89 100 160 158 Slowest Speed 200 | 150 100 200 160 160 Overloaded Moves . | . . . . . Propulsion Burnouts . | . . . . . Robots Hopped . | . . . . . Potential Cave-ins . | . . . . . Cave-ins Triggered . | . . . . . Exploration Rate (%) 33 | 4 85 30 29 19 Regions Visited 4 Branch Regions 1 Pre-discovered Areas . | . . . . . Known Exits Taken . | . . . . . Unknown Exits Taken 4 | 1 1 1 1 . Scrap Searched . | . . . . . Spaces Dug . | . . . . . Terrain Destroyed . | . . . . . Melee . | . . . . . Projectile . | . . . . . AOE . | . . . . . Terrain Rammed . | . . . . . Walls Destroyed . | . . . . . Machines Disabled . | . . . . . Actions | -11 -10 -9 -9 -8 --------- Run | Yrd Mat Mat Min Mat Total 1921 | 48 1010 506 51 306 Wait 558 | . 390 97 7 64 Move 1095 | 35 528 296 44 192 Hop . | . . . . . Pick Up 43 | 6 12 15 . 10 Fast Attach 6 | 2 . 1 . 3 Attach 37 | 4 10 18 . 5 Detach 1 | . . 1 . . Swap 2 | 1 . 1 . . Drop . | . . . . . Fire 179 | . 70 77 . 32 Melee . | . . . . . Ram . | . . . . . Kick . | . . . . . Crush . | . . . . . Escape Stasis . | . . . . . Rewire . | . . . . . Trap . | . . . . . Miscellaneous . | . . . . . Route ------- -11/Scrapyard -10/Materials (discovered 4 exits: *Mat x2 / [*Min x2]) -9/Materials -9/Mines -8/Materials (discovered 4 exits: *Fac x3 / Sto) History --------- Turn | Location | Event 27 | -11/Scrapyard | Discovered new exit (range 14) 41 | -11/Scrapyard | Entered Materials 308 | -10/Materials | Build established: Mutant 537 | -10/Materials | Discovered new exit (range 16) 699 | -10/Materials | Discovered new exit (range 4) 825 | -10/Materials | Discovered new exit (range 14) 966 | -10/Materials | Core integrity fell below 50% 999 | -10/Materials | Core integrity fell below 20% 1027 | -10/Materials | Lost 6 parts (1p1n1u3w) 1091 | -10/Materials | Discovered new exit (range 11) 1123 | -10/Materials | Entered another Materials area 1123 | -9/Materials | Evolved 2 slots: Utility x2 1173 | -9/Materials | Repaired Sml. Storage Unit 1201 | -9/Materials | Repaired Sml. Laser 1293 | -9/Materials | Lost 4 parts (1p2n1w) 1471 | -9/Materials | Discovered new exit (range 14) 1522 | -9/Materials | Lost 3 parts (1p1n1u) 1656 | -9/Materials | Build established: Scavenger-Mutant 1682 | -9/Materials | Core integrity fell below 50% 1712 | -9/Materials | Lost 6 parts (1p2n1u2w) 1766 | -9/Materials | Entered Mines 1771 | -9/Mines | Met a Derelict bent on vengeance 1793 | -9/Mines | Learned Materials garrison access intel 1836 | -9/Mines | Discovered new exit (range 6) 1844 | -9/Mines | Entered Materials 1844 | -8/Materials | Evolved 2 slots: Utility x1, Weapon x1 1845 | -8/Materials | Loaded intel: 1 garrison access location 1880 | -8/Materials | Identified exit to Factory 1920 | -8/Materials | Identified exit to Storage 2017 | -8/Materials | Lost 3 parts (2u1w) 2308 | -8/Materials | Core integrity fell below 50% 2314 | -8/Materials | Core integrity fell below 20% 2318 | -8/Materials | Destroyed by H-61 Shepherd with Heavy Assault Cannon Last Messages --------------- 02305_ Armor Integrity Analyzer destroyed. 02305_ Critical hit (Blast). 02305_ Knocked back. 02305_ Gauss Rifle destroyed. 02306_ Acquired 13 matter. 02307_ Knocked back. 02307_ Critical hit (Burn: +37). 02307_ Gauss Rifle destroyed. 02309_ Penetrated by Slug. 02309_ Electrolysis Chamber disabled. 02311_ Knocked back. 02312_ Acquired 8 matter. 02313_ Knocked back. 02314_ Sml. Laser destroyed. 02315_ Knocked back. 02316_ Acquired 7 matter. 02316_ R-06 Scavenger collects Terrain Scanner. 02318_ Acquired 6 matter. 02318_ Core Analyzer destroyed. 02318_ Critical hit (Blast). Map ----- +----------------------------------------------------+ | | | | | | | | | | | | | | | | | ?????????????????????????????????????????????????? | | ?????????????????????????????????????????????????? | | ?????????????????????????????????????????????????? | | ?????????????????????????????????????????????????? | | ?????????????????????????????????????????????????? | | ?????????????????????????????????????????????????? | | ???????????????????????###########???????????????? | | ???????????????????????# #????????????#### | | ???????????????????????# #????????????# | | ???????????????????????# [ #????????????#% | | ???????????????????????# #????????##### | | ???????????????????????# #????????# # | | ???????????????????????# """ """ #????????# < # | | ???????????????????????# """ """ #????????# # ! | | ???????????????????????# "" """ #????????# + | | ???????????????????????##;##+############## # | | ???????????????????????#% gg # ] | | ???????????????????????# @ % g mk [#### | | ???????????????????????#==#######k#########%!=#### | | ???????????????????????#!%##???????# # % # | | ???????????????????????# *##???????# """ # ! # "" | | ???????????????????????Y H ????????# "R / + "" | | ?????????????????????? ????????# """ # # "" | | ????????????????????? ????????# "" # # | | ????????????????????### Y ????????# # #### | | ??????????#####+########/################## # | | ??????????# """ ## ##???# # # | | ??????????# "Y" ## ! #???# ! """ # # | | ??????????# ## ! ##???# """ # + | | ??????????# ## [ #????# """ # # | | ??????????# ## #????# + # | | ??????????# """ ## #????# * """ # #### | | ??????????# """ # #????# """ # #??? | | ??????????# """ ## #????# """ # #?#? | | ??????????# ## "" #????# ! #% #??# | | ???????############## S"" #????##########=% #??? | | ???????# !## "" ############### #??? | | ?????#?# ########## #### | | ???????# """ #??????#?# % == | | ??????## """ "#????????# T """ " " == | | ???????# """ T#????????# """ " " | | ???????# ! "#????????# """ """ == | +----------------------------------------------------+ Best States ------------- Heat Dissipation 41 Energy Generation 14 Energy Capacity 250 Matter Stores 300 Matter Capacity 300 Sight Range 20 Robot Scan Range 14 Terrain Scan Range 16 Terrain Scan Density 10 Core Shielding 20 Evasion (%) 50 Targeting Accuracy 6 Core Analysis 6 Armor Integrity Analysis 30 Recoil Reduction 2 Offensive Hacking 10 Item Schematics ----------------- None Robot Schematics ------------------ None Fabricated ------------ Nothing Repaired ---------- Sml. Storage Unit | 30% | -9/Materials Sml. Laser | 28% | -9/Materials Studied --------- None Alien Tech Used ----------------- None Achievements -------------- That Tickles Challenges ------------ None Game ------ Seed EfficiencyGuidedSpiker Manual? 0 Play Time 00:26:14 Cumulative 18.0 hours Start 2026.09.01 @ 11:48:19 End 2026.09.01 @ 12:10:11 Sessions 1 Manual Loads 0 Difficulty Rogue Special Mode None Game No. 40 Rogue 40 Adventurer 0 Explorer 0 Win Type - Total 0 Types 0/0/0/0/0/0/0/0/0/0 Lore% 10 Gallery% 13 Achievement% 13 Wizard Run 0 Options --------- Layout 1 ASCII 0 Keyboard 0 Movement Mouse Keybinds 0 Fullscreen 1 Font 32/SmallcapsGlow Map View 50x35 Zoom Use 0% Tactical HUD 1 Map Filters NONE Filters NONE Steam 1 RUN: d5daa734-2eac-4a96-8af4-025da41bce43